{"text_format":"1","workbook":"xlsx","n_sheets":24,"sheets":["Regie","Anmeldung","KK","Resultate30","Auszeichnung","StandblattA5","S_Abrech30","EASV_Abrech30","EASV_Abrech30COM","Journal30","Gutsch","Auszliste","Stiche","Listegs","KB_Sektion","Rangwork","GRwk","MFrang","SEwk","SErang","Gru_Detail","Grurangli","Gesamtrang","Stblmanu"],"not_rendered":{"charts":0,"images":2,"macros":1,"external_links":0,"defined_names":43,"comments":10,"pivot_tables":0},"unopened":[],"bounds":{"document_bytes":16777216,"sheet_cells":100000,"rows_first":2000,"rows_last":500,"rows_between":2000,"halvings":0,"cell_chars":16384,"cell_head_chars":4096},"cells_cut":0,"cells_raw":0,"read":"whole","date_system":"1900"}

{"sheet":"Regie","index":0,"n_rows":23,"n_cols":17,"rows_kept":23,"cut":false,"hidden":false,"merged":[[19,7,19,12],[8,9,8,16],[13,7,13,12],[0,1,0,9],[12,7,12,12],[6,10,6,13],[12,14,12,17],[13,14,13,17]]}
[2022,"Eidgenössischer Armbrustschützen-Verband EASV"]
[null,null,"30 m Volksschiessen",null,null,2022]
[null,null,{"$f":"EASV_Abrech30!F3","v":"ASV Muster"}]
[]
[null,null,null,null,null,null,null,null,null,null,null,null,null,null,null,"Info"]
[]
[null,null,null,null,null,null,null,null,null,null,"Hilfe: 079 343 65 68\n056 633 81 63"]
[]
[null,"Preise","Übungskehr","Hauptdoppel","Nachdoppel","EASV-HD","ND","Gruppe",null,"Bonus / Stiche"]
[null,"Jugend JJ",2,7,5,5.5,4,4,null,15,25,40,60,80,110,140,170]
[null,"älter 16 J.",2,11,6,8.5,4,4,null,10,25,50,75,100,150,200,250]
[]
[null,null,"Alters-Kategorie","EASV -Mitglied","(ab / bis) Jahrgang","Kranz-Limiten",null,"Für Ranglisten",null,null,null,null,null,null,"Gruppen"]
[null,null,"JJ",null,{"$f":"$F$2-8","v":2014},38,null,"bei Punktgleichheit gilt:",null,null,null,null,null,null,"In Gruppe sind"]
[null,null,"J",null,{"$f":"$F$2-17","v":2005},38,null,1,"bester Nachdoppel",null,null,null,null,24,4,"Schützen"]
[null,null,"A","J",{"$f":"$F$2-21","v":2001},42,null,2,"Tiefschüsse bester Stich",null,null,null,null,14,1,"Streich-Resultat"]
[null,null,"A","N",{"$f":"$F$2-21","v":2001},39,null,3,"Alter",null,null,null,null,22,null,"Fr. Gr-Doppel"]
[null,null,"V",null,{"$f":"$F$2-60","v":1962},41,null,4,"Gast vor Aktivschütze",null,null,null,null,21]
[null,null,"EV","aufg.",{"$f":"$F$2-70","v":1952},42,null,5,"Frau vor Mann",null,null,null,null,23]
[null,null,"EV","frei",{"$f":"$F$2-70","v":1952},40,null,"Reihenfolge frei zuteilbar (auch leer lassen)"]
[null,null,"Gast","N",{"$f":"$F$2-21","v":2001},39,null,"A","A = mit Aktiven, leer = ohne"]
[]
[null,"Franko@hispeed.ch",null,"2022-06-06",null,null,null,null,null,null,null,null,0]

{"sheet":"Anmeldung","index":1,"n_rows":4,"n_cols":24,"rows_kept":4,"cut":false,"hidden":false,"merged":[[1,9,1,10],[1,15,1,18],[1,19,1,23],[0,3,0,6]]}
[null,null,null,"Eidgenössischer Armbrustschützen-Verband EASV",null,null,null,null,null,null,2,7,5,2,11,6,{"$f":"Regie!F2-17","v":2005}]
[1,null,null,{"$f":"Regie!C2","v":"30 m Volksschiessen"},null,"Anmeldung",null,{"$f":"PROPER(J2)","v":""},null,null,null,1993,{"$f":"IF(AND(L2>(Regie!F2-100),L2<=Regie!D14),IF(L2<=Regie!$D$20,Regie!$C$20,IF(L2<=Regie!$D$18,Regie!$C$18,IF(L2<=Regie!$D$16,Regie!$C$16,IF(L2<=Regie!D15,Regie!C15,Regie!C14)))),\"--\")","v":"--"},1,1,"Spezial-Wettkampf",null,null,null,"Teilnahme  Vorjahre"]
[]
["Standblatt","Name Vorname",null,"Adresse","Plz","Ort","Jg","Kategorie","Stellung","EASV-Aktiv","Anz. Ueb-Kehr","Anz. Stiche","Betrag","Gruppe","Team-Nr. Sie+Er"," M/F","Gruppen-Name","Grp-Doppel",null,2021,2020,2019,2018,"Anzahl Besuche"]

{"sheet":"KK","index":2,"n_rows":9,"n_cols":3,"rows_kept":9,"cut":false,"hidden":true,"merged":[[4,2,4,4],[2,2,2,6]]}
[]
[]
[null,null,{"$f":"Regie!C2&\" \"&Regie!F2","v":"30 m Volksschiessen 2022"}]
[null,null,{"$f":"Regie!C3","v":"ASV Muster"}]
[null,null,{"$f":"TODAY()","v":"2022-06-06"}]
[]
[]
["KK Einschieben: manuelle Zufuhr"]
[null,"EASV-Logo oben, hinten links"]

{"sheet":"Resultate30","index":3,"n_rows":54,"n_cols":51,"rows_kept":54,"cut":false,"hidden":false,"merged":[[1,0,1,1],[42,2,42,6],[0,5,1,8],[5,6,5,8],[4,6,4,8],[7,5,7,9],[1,9,1,11]]}
[{"$f":"Regie!C2","v":"30 m Volksschiessen"},null,null,null,null,"Resultaterfassung"]
[{"$f":"Regie!F2","v":2022},null,null,null,null,null,null,null,null,"Standblatt-Nr.",null,null,0]
[null,"Name"]
[null,null,null,null,null,null,null,null,null,null,null,"Fr."]
[null,"Aktiv-Mitglied EASV ",null,null,null,null,"Anz.Kranzres.",null,null,null,null,"bez."]
[null,"Anzahl Übungskehr",null,null,null,null,"Wahl Auszeichnung",null,null,null,null,"Diff.",{"$f":"M4-M5","v":0}]
[]
[null,null,null,null,null,"Schusswerte",null,null,null,null,null,"Grp"]
[null,null,"Stiche","gelöst","Scheibe",1,2,3,4,5,"Total",null,"Ausz.","Err"]
[null,null,1]
[null,null,2]
[null,null,3]
[null,null,4]
[null,null,5]
[null,null,6]
[null,null,7]
[null,null,8]
[]
[]
[]
[]
[]
[]
[]
[]
[]
[]
[]
[]
[]
[]
[]
[]
[]
[]
[]
[]
[]
[]
["Standblatt","Name","Adresse","Plz","Ort","Jahrgang","Kat","Stellung","EASV-Aktiv","Anz. U-Kehr","HD","ND","Betrag","Anz. Kranzres","Ausz-Wahl","Scheibe 1","Res1","Scheibe 2","Res2","Scheibe 3","Res3","Scheibe 4","Res4","Scheibe 5","Res5","Scheibe 6","Res6","Scheibe 7","Res7","Scheibe 8","Res8","Scheibe 9","Res9","Scheibe 10","Res10","Kabzeichen","GuKA Vj","Bandeinlage","KK Fr.6.00","KK Fr.8.00\n","KK Fr.10.00","KK Fr.12.00","KK Fr.14.00","Kaffeelöffeli","Esslöffel","Gabel","Messer","Besteck-Set","Bwert","Vorauszahlung","Kat-intern"]
[]
[null,null,null,null,null,null,1,null,null,null,null,null,{"$f":"IF(F41>F48,(J42*Regie!C10)+(K42*Regie!D10)+(L42*Regie!E10),(J42*Regie!C11)+(K42*Regie!D11)+(L42*Regie!E11))","v":0}]
[null,"Sch","Schusswerte",null,null,null,null,{"$f":"SUM(C44:G44)","v":0},"Ktot","Kranz","Fehler-s","Fehler-r"," Fsum "]
[{"$f":"IF($K$41>0,\"X\",\"-\")","v":"-"},null,null,null,null,null,null,null,{"$f":"IF(H43=0,H44,H43)","v":0},null,null,{"$f":"IF(AND(H44=I44,H44<51),0,1)","v":0},{"$f":"SUM(N10:N17)","v":0}]
[{"$f":"IF($L$41>0,\"X\",\"-\")","v":"-"}]
[{"$f":"IF($L$41>1,\"X\",\"-\")","v":"-"},null,null,null,"kat",null,"Limite","Kat num","aktiv",null,null,null,null,null,null,null,null,"Besteck-Wahl"]
[{"$f":"IF($L$41>2,\"X\",\"-\")","v":"-"},{"$f":"AM$41","v":0},"Fr. 6.-- (blau)",null,{"$f":"Regie!C14","v":"JJ"},{"$f":"Regie!E14","v":2014},{"$f":"Regie!F14","v":38},1,{"$f":"Regie!D14","v":0},null,null,null,null,null,null,null,null,"Guthaben",null,"Bezug",{"$f":"SUM(U48:U53)","v":0}]
[{"$f":"IF($L$41>3,\"X\",\"-\")","v":"-"},{"$f":"AN$41","v":0},"Fr. 8.-- (grün)",null,{"$f":"Regie!C15","v":"J"},{"$f":"Regie!E15","v":2005},{"$f":"Regie!F15","v":38},2,{"$f":"Regie!D15","v":0},null,null,null,null,null,null,null,null,"Kaffelöffeli",null,1,{"$f":"Q48*T48","v":0}]
[{"$f":"IF($L$41>4,\"X\",\"-\")","v":"-"},{"$f":"AO$41","v":0},"Fr. 10.-- (rot)",null,{"$f":"Regie!C16","v":"A"},{"$f":"Regie!E16","v":2001},{"$f":"Regie!F16","v":42},3,{"$f":"Regie!D16","v":"J"},null,null,null,null,null,null,null,null,"Esslöffel",null,2,0]
[{"$f":"IF($L$41>5,\"X\",\"-\")","v":"-"},{"$f":"AP$41","v":0},"Fr. 12.-- )gelb)",null,{"$f":"Regie!C17","v":"A"},{"$f":"Regie!E17","v":2001},{"$f":"Regie!F17","v":39},4,{"$f":"Regie!D17","v":"N"},null,null,null,null,null,null,null,null,"Essgabel",null,2,0]
[{"$f":"IF($L$41>6,\"X\",\"-\")","v":"-"},{"$f":"AQ$41","v":0},"Fr. 14.-- (weiss)",null,{"$f":"Regie!C18","v":"V"},{"$f":"Regie!E18","v":1962},{"$f":"Regie!F18","v":41},5,{"$f":"Regie!D18","v":0},null,null,null,null,null,null,null,null,"Messer",null,2,0]
[null,null,null,null,{"$f":"Regie!C19","v":"EV"},{"$f":"Regie!E19","v":1952},{"$f":"Regie!F19","v":42},6,{"$f":"Regie!D19","v":"aufg."},null,null,null,null,null,null,null,null,"Set in Box",null,7,0]
[null,{"$f":"SUM(B47:B52)","v":0},null,null,{"$f":"Regie!C20","v":"EV"},{"$f":"Regie!E20","v":1952},{"$f":"Regie!F20","v":40},7,{"$f":"Regie!D20","v":"frei"},null,null,null,null,null,null,null,null,"Pin / B-einlage",null,1,0]
[null,null,null,null,{"$f":"Regie!C21","v":"Gast"},{"$f":"Regie!E21","v":2001},{"$f":"Regie!F21","v":39},4,{"$f":"Regie!D21","v":"N"}]

{"sheet":"Auszeichnung","index":4,"n_rows":45,"n_cols":16,"rows_kept":45,"cut":false,"hidden":true,"merged":[]}
["Ausz-Nr","Varianten","KA","KAVJ","Pin","KK6","KK8","KK10","KK12","KK14","KL","EL","Ga","Me","BSet","Bwert"]
[1,"Auswahl mit 1 Kranzresultat"]
[11,"1 Kranzabzeichen",1]
[12,"1 Kranzkarte Fr. 6.00",null,null,null,1]
[13,"1 Besteckwert",null,null,null,null,null,null,null,null,null,null,null,null,null,1]
[2,"Auswahl mit 2 Kranzresultaten"]
[21,"1 Kranzabzeichen plus 1 Besteckwert",1,null,null,null,null,null,null,null,null,null,null,null,null,1]
[22,"1 Kranzkarte Fr. 8.00",null,null,null,null,1]
[23,"2 Besteckwerte",null,null,null,null,null,null,null,null,null,null,null,null,null,2]
[3,"Auswahl mit 3 Kranzresultaten"]
[31,"1 Kranzabzeichen plus 2 Besteckwerte",1,null,null,null,null,null,null,null,null,null,null,null,null,2]
[32,"1 Kranzkarte Fr. 10.00",null,null,null,null,null,1]
[33,"1 Kranzkarte Fr. 6.00 plus 2 Besteckwerte",null,null,null,1,null,null,null,null,null,null,null,null,null,2]
[34,"3 Besteckwerte",null,null,null,null,null,null,null,null,null,null,null,null,null,3]
[4,"Auswahl mit 4 Kranzresultaten"]
[41,"1 Kranzabzeichen plus 3 Besteckwerte",1,null,null,null,null,null,null,null,null,null,null,null,null,3]
[42,"1 Kranzabzeichen plus 1 Kranzkarte Fr. 6.00",1,null,null,1]
[43,"1 Kranzkarte Fr. 12.00",null,null,null,null,null,null,1]
[44,"1 Kranzkarte Fr.   8.00 plus 3 Besteckwert",null,null,null,null,1,null,null,null,null,null,null,null,null,3]
[45,"4 Besteckwerte",null,null,null,null,null,null,null,null,null,null,null,null,null,4]
[5,"Auswahl mit 5 Kranzresultaten"]
[51,"1 KA plus 4 Besteckwerte",1,null,null,null,null,null,null,null,null,null,null,null,null,4]
[52,"1 KA plus Kranzkarte Fr. 8.00",1,null,null,null,1]
[53,"1 Kranzkarte Fr. 14.00",null,null,null,null,null,null,null,1]
[54,"1 Kranzkarte Fr. 10.00 plus 3 Besteckwert",null,null,null,null,null,1,null,null,null,null,null,null,null,3]
[55,"5 Besteckwerte",null,null,null,null,null,null,null,null,null,null,null,null,null,5]
[6,"Auswahl mit 6 Kranzresultaten"]
[61,"1 KA plus 5 Besteckwerte",1,null,null,null,null,null,null,null,null,null,null,null,null,5]
[62,"1 KA plus Kranzkarte Fr. 10.00",1,null,null,null,null,1]
[63,"2 Kranzkarten à Fr. 8.00",null,null,null,null,2]
[64,"1 Kranzkarte Fr. 12.00 plus 1 Besteckwert",null,null,null,null,null,null,1,null,null,null,null,null,null,1]
[65,"6 Besteckwerte",null,null,null,null,null,null,null,null,null,null,null,null,null,6]
[7,"Auswahl mit 7 Kranzresultaten"]
[71,"1 KA plus 6 Besteckwerte",1,null,null,null,null,null,null,null,null,null,null,null,null,6]
[72,"1 KA plus Kranzkarte Fr. 12.00",1,null,null,null,null,null,1]
[73,"1 Kranzkarte Fr. 14.00 plus 1 Besteckwert",null,null,null,null,null,null,null,1,null,null,null,null,null,1]
[74,"7 Besteckwerte (Präsentationsschachtel)",null,null,null,null,null,null,null,null,null,null,null,null,1,7]
[8,"Auswahl mit 8 Kranzresultaten"]
[81,"1 KA plus 7 Besteckwerte",1,null,null,null,null,null,null,null,null,null,null,null,null,7]
[82,"1 KA plus Kranzkarte Fr. 14.00",1,null,null,null,null,null,null,1]
[83,"2 Kranzkarten à Fr. 10.00",null,null,null,null,null,2]
[84,"1 Kranzkarte Fr. 14.00 plus 2 Besteckwerte",null,null,null,null,null,null,null,1,null,null,null,null,null,2]
[85,"8 Besteckwerte",null,null,null,null,null,null,null,null,null,null,null,null,1,8]
[9,"Ab 9 Kranzresultaten"]
[91]

{"sheet":"StandblattA5","index":5,"n_rows":43,"n_cols":20,"rows_kept":43,"cut":false,"hidden":true,"merged":[[3,18,3,20],[3,17,5,17],[10,7,11,7],[12,6,13,6],[10,6,11,6],[4,18,4,20],[16,8,17,9],[20,7,21,7],[20,8,21,9],[18,7,19,7],[18,8,19,9],[18,4,19,4],[18,5,19,5],[14,7,15,7],[24,5,25,5],[20,6,21,6],[18,6,19,6],[16,6,17,6],[16,5,17,5],[22,5,23,5],[16,7,17,7],[22,6,23,6],[20,5,21,5],[12,2,13,2],[18,3,19,3],[20,3,21,3],[18,1,19,1],[18,2,19,2],[16,1,17,1],[16,2,17,2],[14,1,15,1],[12,3,13,3],[16,3,17,3],[24,1,25,1],[22,3,23,3],[20,1,21,1],[20,2,21,2],[22,1,23,1],[22,2,23,2],[24,2,25,2],[24,3,25,3],[0,1,1,2],[1,3,1,11],[14,6,15,6],[12,8,13,9],[10,1,11,1],[10,4,11,4],[9,8,9,9],[10,8,11,9],[10,2,11,2],[14,2,15,2],[10,3,11,3],[14,3,15,3],[14,8,15,9],[10,5,11,5],[12,7,13,7],[12,1,13,1],[0,3,0,11],[32,13,32,14],[31,13,31,14],[24,8,25,9],[22,7,23,7],[22,8,23,9],[24,7,25,7],[16,4,17,4],[12,4,13,4],[14,4,15,4],[12,5,13,5],[24,6,25,6],[14,5,15,5],[20,4,21,4],[22,4,23,4],[24,4,25,4]]}
[null,"EASV",null,{"$f":"\"Volksschiessen \"&Regie!F2&\" Standblatt\"","v":"Volksschiessen 2022 Standblatt"}]
[null,null,null,{"$f":"Regie!C3","v":"ASV Muster"}]
[]
[null,null,null,null,null,null,null,null,null,null,null,null,null,"Fr.",null,null,null,"Info","fakultativ: Scheiben-Nr.erfassen"]
[null,null,null,null,"Aktiv",null,"JG","Kat.","Stlg.",null,null,null,null,null,null,null,null,null,"weiter mit Klick auf"]
[null,null,null,null,null,null,null,null,null,null,null,null,null,null,null,null,null,null,null,"oder"]
[]
[null,"Übungskehr"]
[]
[null,null,"Scheibe","S-1","S-2","S-3","S-4","S-5","Total"]
[]
[null,null,null,null,null,null,null,null,null,null,null,null,null,"Kranzabzeichen"]
[null,null,null,null,null,null,null,null,null,null,null,null,null,"KA Vorjahr"]
[null,null,null,null,null,null,null,null,null,null,null,null,null,"Bandeinlage / Pin"]
[null,null,null,null,null,null,null,null,null,null,null,null,null,"Kranzkarte Fr. 6.00"]
[null,null,null,null,null,null,null,null,null,null,null,null,null,"Kranzkarte Fr. 8.00"]
[null,null,null,null,null,null,null,null,null,null,null,null,null,"Kranzkarte Fr. 10.00"]
[null,null,null,null,null,null,null,null,null,null,null,null,null,"Kranzkarte Fr. 12.00"]
[null,null,null,null,null,null,null,null,null,null,null,null,null,"Kranzkarte Fr. 14.00"]
[null,null,null,null,null,null,null,null,null,null,null,null,null,"Kaffeelöffeli (1)"]
[null,null,null,null,null,null,null,null,null,null,null,null,null,"Esslöffel (2)"]
[null,null,null,null,null,null,null,null,null,null,null,null,null,"Essgabel (2)"]
[null,null,null,null,null,null,null,null,null,null,null,null,null,"Messer (2)"]
[null,null,null,null,null,null,null,null,null,null,null,null,null,"Besteck-Set (7)"]
[null,null,null,null,null,null,null,null,null,null,null,null,null,"Besteck-Werte"]
[]
[]
[null,null,null,"Anz.Kranzres.",null,null,null,null,null,null,null,"Wahl Auszeichnung:"]
[]
[null,null,null,"Hauptdoppel",null,null,null,null,"Kranzlimite",null,null,null,null,"Punkte"]
[null,null,null,"Nachdoppel"]
[null,null,null,"Uebungskehr",null,null,null,null,null,null,null,null,null,"2022-06-04"]
[]
[]
[]
[]
[]
[]
[]
["Standblatt","Name","Adresse","plz","Ort","Jahrgang","Kat","Stellung","EASV-Aktiv","Anz. U-Kehr","HD","ND","Betrag"]
[]
[null,null,null,null,{"$f":"IF($J$43>0,\"X\",\"-\")","v":"-"},{"$f":"IF($J$43>1,\"X\",\"-\")","v":"-"},{"$f":"IF($J$43>2,\"X\",\"-\")","v":"-"},{"$f":"IF($K$433,\"X\",\"-\")","v":"-"},{"$f":"IF($J$43>4,\"X\",\"-\")","v":"-"},{"$f":"IF($K$435,\"X\",\"-\")","v":"-"}]
[null,null,null,null,null,1948,"EV","aufg.",null,null,2,17]

{"sheet":"S_Abrech30","index":6,"n_rows":31,"n_cols":13,"rows_kept":31,"cut":false,"hidden":true,"merged":[[1,2,1,11],[0,0,1,1],[9,2,10,2],[8,6,8,7],[3,10,3,11],[4,10,4,11],[5,10,5,11],[9,3,10,3],[9,0,10,0],[9,1,10,1],[0,2,0,11],[3,8,3,9],[4,8,4,9],[5,8,5,9],[11,5,12,5],[9,4,10,4],[19,6,20,7],[19,4,20,4],[13,5,14,5],[17,6,18,7],[9,6,10,7],[11,6,12,7],[9,5,10,5],[15,6,16,7],[13,6,14,7],[11,0,12,0],[17,1,18,1],[17,0,18,0],[15,0,16,0],[11,4,12,4],[13,3,14,3],[13,4,14,4],[11,3,12,3],[15,4,16,4],[15,3,16,3],[13,2,14,2],[11,1,12,1],[11,2,12,2],[13,0,14,0],[13,1,14,1],[23,6,24,7],[21,5,22,5],[21,6,22,7],[23,4,24,4],[23,5,24,5],[21,4,22,4],[23,0,24,0],[23,1,24,1],[23,3,24,3],[17,2,18,2],[19,2,20,2],[17,3,18,3],[21,0,22,0],[21,1,22,1],[21,2,22,2],[21,3,22,3],[19,0,20,0],[19,1,20,1],[19,3,20,3],[28,1,28,2],[15,1,16,1],[15,2,16,2],[23,2,24,2],[19,5,20,5],[17,4,18,4],[17,5,18,5],[15,5,16,5]]}
["EASV",null,{"$f":"Regie!C2&\" \"&Regie!F2&\" Abrechnung\"","v":"30 m Volksschiessen 2022 Abrechnung"},null,null,null,null,null,null,null,null,null,"Nr."]
[null,null,{"$f":"EASV_Abrech30!F3","v":"ASV Muster"}]
["Name"]
["Adresse",null,null,null,null,null,null,null,"Fr."]
["PLZ Ort",null,null,null,null,null,null,null,"bez"]
[null,"Aktiv-Mitglied",null,null,"Jg","kat","stlg",null,"Diff."]
[]
[]
["Scheibe","S-1","S-2","S-3","S-4","S-5","Total"]
[null,null,null,null,null,null,null,null,null,null,null,"Anz. Übungskehr"]
[]
[null,null,null,null,null,null,null,null,null,null,null,"Kranzresultate"]
[]
[null,null,null,null,null,null,null,null,null,null,null,"Kranzabzeichen"]
[null,null,null,null,null,null,null,null,null,null,null,"KA Vorjahr"]
[null,null,null,null,null,null,null,null,null,null,null,"Bandeinlage / Pin"]
[null,null,null,null,null,null,null,null,null,null,null,"Kranzkarte Fr. 6.00"]
[null,null,null,null,null,null,null,null,null,null,null,"Kranzkarte Fr. 8.00"]
[null,null,null,null,null,null,null,null,null,null,null,"Kranzkarte Fr. 10.00"]
[null,null,null,null,null,null,null,null,null,null,null,"Kranzkarte Fr. 12.00"]
[null,null,null,null,null,null,null,null,null,null,null,"Kranzkarte Fr. 14.00"]
[null,null,null,null,null,null,null,null,null,null,null,"Kaffeelöffeli"]
[null,null,null,null,null,null,null,null,null,null,null,"Esslöffel"]
[null,null,null,null,null,null,null,null,null,null,null,"Gabel"]
[null,null,null,null,null,null,null,null,null,null,null,"Messer"]
[null,null,null,null,null,null,null,null,null,null,null,"Besteck-Set"]
[null,null,null,null,null,null,null,null,null,null,null,"Besteck-Werte"]
[]
["Datum:"]
[]
["Kopie Verein",null,null,null,null,"Visum"]

{"sheet":"EASV_Abrech30","index":7,"n_rows":33,"n_cols":13,"rows_kept":33,"cut":false,"hidden":false,"merged":[[7,11,8,12]]}
[null,null,"Eidgenössischer Armbrustschützenverband"]
[null,null,"Association Fédérale de tir à l‘arbalète AFTA"]
[null,"Abrechnungs-Blatt",null,null,null,"ASV Muster"]
[null,"Lieferschein",null,"Sekt-nr",null,"verantwortlich"]
[null,null,null,null,null,"adresse"]
[null,{"$f":"Regie!C2&\" \"&Regie!F2","v":"30 m Volksschiessen 2022"},null,null,null,"plz","ort"]
[null,null,null,null,"email"]
[null,null,null,null,"Telefon",null,null,null,null,null,null,"für Volksschiessen reservierte Scheiben-Stapel "]
[]
[null,"Verkaufte Stiche",null,"Preis HD","Preis ND","HD","ND","Fr.",null,null,null,"von Nr.","bis Nr."]
[null,null,"Jugend",5.5,4]
[null,null,"Übrige",8.5,4]
[null,"Material-Zahlung"]
[null,"Bonus"]
[null,"Betrag an EASV",null,null,null,null,"Fr. ",{"$f":"SUM(H11:H14)","v":0}]
[]
[null,"Artikel",null,"Preis","Total erhalten","Verbrauch","Retour","Nachliefern","Verloren","Betrag","Lieferung Artikel erhalten"]
[null,"Kranzabzeichen",null,12,null,null,null,null,null,{"$f":"I18*D18","v":0}]
[null,"Kranz-Gutscheine VJ",null,null,null,null,null,null,null,{"$f":"I19*D19","v":0}]
[null,"Bandeinlage / Pin",null,4,null,null,null,null,null,0]
[null,"Kranzkarte Fr. 6.00 ",null,6.5,null,null,null,null,null,0]
[null,"Kranzkarte Fr. 8.00 ",null,8.5,null,null,null,null,null,0]
[null,"Kranzkarte Fr. 10.00 ",null,10.5,null,null,null,null,null,0]
[null,"Kranzkarte Fr. 12.00 ",null,12.5,null,null,null,null,null,0]
[null,"Kranzkarte Fr. 14.00 ",null,14.5,null,null,null,null,null,0]
[null,"Inox-Kaffeelöffeli",null,4,null,null,null,null,null,0]
[null,"Inox-Esslöffel",null,8,null,null,null,null,null,0]
[null,"Inox-Gabel",null,8,null,null,null,null,null,0]
[null,"Inox-Messer",null,8,null,null,null,null,null,0]
[null,"Besteckset in Box",null,28,null,null,null,null,null,0]
[null,null,null,null,null,null,null,null,null,{"$f":"I31*D31","v":0}]
[null,"Total",null,null,null,null,null,null,null,{"$f":"SUM(J18:J31)","v":0}]
[null,null,null,null,null,"Visiert:"]

{"sheet":"EASV_Abrech30COM","index":8,"n_rows":33,"n_cols":6,"rows_kept":33,"cut":false,"hidden":true,"merged":[]}
[null,null,"Eidgenössischer Armbrustschützenverband"]
[null,null,"Association Fédérale de tir à l‘arbalète AFTA"]
[]
[]
[]
[]
[]
[]
[]
[]
[]
[]
[]
[]
[]
[]
[]
[]
[]
[]
[]
[]
[]
[]
[]
[]
[]
[]
[]
[]
[]
[]
[null,null,null,null,null,"Visiert:"]

{"sheet":"Journal30","index":9,"n_rows":4,"n_cols":52,"rows_kept":4,"cut":false,"hidden":true,"merged":[[0,2,0,3]]}
[null,null,"30 m - Volksschiessen",null,2022]
[null,null,null,null,null,"Journal",null,null,null,null,null,null,null,null,null,null,null,null,null,null,null,null,null,null,null,null,null,null,null,null,null,null,null,null,null,null,null,"Auszeichnungen"]
[]
["EASV-Nr.","Standblatt","Name","Adresse","Plz","Ort","Jahrgang","Kat.","Stellung","EASV-Aktiv","Anz. U-Kehr","HD","ND","Betrag","Anz. Kranzres","Ausz-Wahl","Scheibe 1","Res1","Scheibe 2","Res2","Scheibe 3","Res3","Scheibe 4","Res4","Scheibe 5","Res5","Scheibe 6","Res6","Scheibe 7","Res7","Scheibe 8","Res8","Scheibe 9","Res9","Scheibe 10","Res10","Kranzabzeichen","GuKA Vj","Bandeinlage/Pin","KK Fr.6.00","KK Fr.8.00\n","KK Fr.10.00","KK Fr.12.00","KK Fr.14.00","Kaffeelöffeli","Esslöffel","Gabel","Messer","Besteck-Set","Bwert","Vorauszahlung","Kat-intern"]

{"sheet":"Gutsch","index":10,"n_rows":13,"n_cols":12,"rows_kept":13,"cut":false,"hidden":true,"merged":[[12,0,12,1],[7,9,7,11],[9,9,9,11],[10,9,10,11],[8,9,8,11],[7,5,7,7],[9,5,9,7],[7,1,7,3],[11,1,11,3],[0,2,0,11],[6,0,6,11],[10,5,10,7],[11,5,11,7],[8,1,8,3],[9,1,9,3],[10,1,10,3],[8,5,8,7],[11,9,11,11]]}
[null,null,"Eidgenössischer Armbrustschützen-Verband EASV  Volksschiessen"]
["ASV Muster",null,null,null,null,null,null,null,null,null,null,2022]
["Name"]
["Adresse"]
["Plz Ort"]
[]
["Gutschein für Auszeichnung"]
[null,"Kranzabzeichen",null,null,null,"Kranzkarte Fr. 6.00",null,null,null,"Kaffeelöffeli"]
[null,"KA Vorjahr",null,null,null,"Kranzkarte Fr. 8.00",null,null,null,"Esslöffel"]
[null,"Pin / Bandeinlage",null,null,null,"Kranzkarte Fr. 10.00",null,null,null,"Gabel"]
[null,null,null,null,null,"Kranzkarte Fr. 12.00",null,null,null,"Messer"]
[null,null,null,null,null,"Kranzkarte Fr. 14.00",null,null,null,"Besteck-set"]
["2022-06-06",null,null,null,null,null,"Visum"]

{"sheet":"Auszliste","index":11,"n_rows":43,"n_cols":4,"rows_kept":43,"cut":false,"hidden":true,"merged":[]}
["A-Nr.","Varianten","A-Nr.","Varianten"]
[{"$f":"Auszeichnung!A2","v":1},{"$f":"Auszeichnung!B2","v":"Auswahl mit 1 Kranzresultat"},{"$f":"Auszeichnung!A27","v":6},{"$f":"Auszeichnung!B27","v":"Auswahl mit 6 Kranzresultaten"}]
[{"$f":"Auszeichnung!A3","v":11},{"$f":"Auszeichnung!B3","v":"1 Kranzabzeichen"},{"$f":"Auszeichnung!A28","v":61},{"$f":"Auszeichnung!B28","v":"1 KA plus 5 Besteckwerte"}]
[{"$f":"Auszeichnung!A4","v":12},{"$f":"Auszeichnung!B4","v":"1 Kranzkarte Fr. 6.00"},{"$f":"Auszeichnung!A29","v":62},{"$f":"Auszeichnung!B29","v":"1 KA plus Kranzkarte Fr. 10.00"}]
[{"$f":"Auszeichnung!A5","v":13},{"$f":"Auszeichnung!B5","v":"1 Besteckwert"},{"$f":"Auszeichnung!A30","v":63},{"$f":"Auszeichnung!B30","v":"2 Kranzkarten à Fr. 8.00"}]
[null,null,{"$f":"Auszeichnung!A31","v":64},{"$f":"Auszeichnung!B31","v":"1 Kranzkarte Fr. 12.00 plus 1 Besteckwert"}]
[{"$f":"Auszeichnung!A6","v":2},{"$f":"Auszeichnung!B6","v":"Auswahl mit 2 Kranzresultaten"},{"$f":"Auszeichnung!A32","v":65},{"$f":"Auszeichnung!B32","v":"6 Besteckwerte"}]
[{"$f":"Auszeichnung!A7","v":21},{"$f":"Auszeichnung!B7","v":"1 Kranzabzeichen plus 1 Besteckwert"}]
[{"$f":"Auszeichnung!A8","v":22},{"$f":"Auszeichnung!B8","v":"1 Kranzkarte Fr. 8.00"}]
[{"$f":"Auszeichnung!A9","v":23},{"$f":"Auszeichnung!B9","v":"2 Besteckwerte"},{"$f":"Auszeichnung!A33","v":7},{"$f":"Auszeichnung!B33","v":"Auswahl mit 7 Kranzresultaten"}]
[null,null,{"$f":"Auszeichnung!A34","v":71},{"$f":"Auszeichnung!B34","v":"1 KA plus 6 Besteckwerte"}]
[{"$f":"Auszeichnung!A10","v":3},{"$f":"Auszeichnung!B10","v":"Auswahl mit 3 Kranzresultaten"},{"$f":"Auszeichnung!A35","v":72},{"$f":"Auszeichnung!B35","v":"1 KA plus Kranzkarte Fr. 12.00"}]
[{"$f":"Auszeichnung!A11","v":31},{"$f":"Auszeichnung!B11","v":"1 Kranzabzeichen plus 2 Besteckwerte"},{"$f":"Auszeichnung!A36","v":73},{"$f":"Auszeichnung!B36","v":"1 Kranzkarte Fr. 14.00 plus 1 Besteckwert"}]
[{"$f":"Auszeichnung!A12","v":32},{"$f":"Auszeichnung!B12","v":"1 Kranzkarte Fr. 10.00"},{"$f":"Auszeichnung!A37","v":74},{"$f":"Auszeichnung!B37","v":"7 Besteckwerte (Präsentationsschachtel)"}]
[{"$f":"Auszeichnung!A13","v":33},{"$f":"Auszeichnung!B13","v":"1 Kranzkarte Fr. 6.00 plus 2 Besteckwerte"}]
[{"$f":"Auszeichnung!A14","v":34},{"$f":"Auszeichnung!B14","v":"3 Besteckwerte"}]
[null,null,{"$f":"Auszeichnung!A38","v":8},{"$f":"Auszeichnung!B38","v":"Auswahl mit 8 Kranzresultaten"}]
[{"$f":"Auszeichnung!A15","v":4},{"$f":"Auszeichnung!B15","v":"Auswahl mit 4 Kranzresultaten"},{"$f":"Auszeichnung!A39","v":81},{"$f":"Auszeichnung!B39","v":"1 KA plus 7 Besteckwerte"}]
[{"$f":"Auszeichnung!A16","v":41},{"$f":"Auszeichnung!B16","v":"1 Kranzabzeichen plus 3 Besteckwerte"},{"$f":"Auszeichnung!A40","v":82},{"$f":"Auszeichnung!B40","v":"1 KA plus Kranzkarte Fr. 14.00"}]
[{"$f":"Auszeichnung!A17","v":42},{"$f":"Auszeichnung!B17","v":"1 Kranzabzeichen plus 1 Kranzkarte Fr. 6.00"},{"$f":"Auszeichnung!A41","v":83},{"$f":"Auszeichnung!B41","v":"2 Kranzkarten à Fr. 10.00"}]
[{"$f":"Auszeichnung!A18","v":43},{"$f":"Auszeichnung!B18","v":"1 Kranzkarte Fr. 12.00"},{"$f":"Auszeichnung!A42","v":84},{"$f":"Auszeichnung!B42","v":"1 Kranzkarte Fr. 14.00 plus 2 Besteckwerte"}]
[{"$f":"Auszeichnung!A19","v":44},{"$f":"Auszeichnung!B19","v":"1 Kranzkarte Fr.   8.00 plus 3 Besteckwert"},{"$f":"Auszeichnung!A43","v":85},{"$f":"Auszeichnung!B43","v":"8 Besteckwerte"}]
[{"$f":"Auszeichnung!A20","v":45},{"$f":"Auszeichnung!B20","v":"4 Besteckwerte"}]
[]
[]
[{"$f":"Auszeichnung!A21","v":5},{"$f":"Auszeichnung!B21","v":"Auswahl mit 5 Kranzresultaten"},"Bwert","Besteckteil  "]
[{"$f":"Auszeichnung!A22","v":51},{"$f":"Auszeichnung!B22","v":"1 KA plus 4 Besteckwerte"},1,"Kaffeelöffeli EASV"]
[{"$f":"Auszeichnung!A23","v":52},{"$f":"Auszeichnung!B23","v":"1 KA plus Kranzkarte Fr. 8.00"},2,"Löffel oder Gabel EASV"]
[{"$f":"Auszeichnung!A24","v":53},{"$f":"Auszeichnung!B24","v":"1 Kranzkarte Fr. 14.00"},2,"Messer EASV"]
[{"$f":"Auszeichnung!A25","v":54},{"$f":"Auszeichnung!B25","v":"1 Kranzkarte Fr. 10.00 plus 3 Besteckwert"},7,"Besteckset EASV in Präsentationsschachtel"]
[{"$f":"Auszeichnung!A26","v":55},{"$f":"Auszeichnung!B26","v":"5 Besteckwerte"}]
[]
[]
[]
[null,null,"Kranzlimiten"]
[null,"Kat.","(ab / bis) Jahrg.","Punkte"]
[null,{"$f":"Regie!C14&\"  \"","v":"JJ  "},{"$f":"Regie!E14","v":2014},{"$f":"Regie!F14","v":38}]
[null,{"$f":"Regie!C15&\"  \"","v":"J  "},{"$f":"Regie!E15","v":2005},{"$f":"Regie!F15","v":38}]
[null,{"$f":"\"Aktive  \"&Regie!C16&\" \"","v":"Aktive  A "},{"$f":"Regie!E16","v":2001},{"$f":"Regie!F16","v":42}]
[null,{"$f":"Regie!C18&\" \"","v":"V "},{"$f":"Regie!E18","v":1962},{"$f":"Regie!F18","v":41}]
[null,{"$f":"Regie!C20&\" aufg \"","v":"EV aufg "},{"$f":"Regie!E19","v":1952},{"$f":"Regie!F19","v":42}]
[null,{"$f":"Regie!C20&\" frei \"","v":"EV frei "},{"$f":"Regie!E20","v":1952},{"$f":"Regie!F20","v":40}]
[null,"Gäste (alle Nichtmitglieder)",{"$f":"Regie!E17","v":2001},{"$f":"Regie!F17","v":39}]

{"sheet":"Stiche","index":12,"n_rows":1,"n_cols":13,"rows_kept":1,"cut":false,"hidden":true,"merged":[]}
["EASV_Nr","Standblatt","Stich","Scheibe","S1","S2","S3","S4","S5","Total","J","KR","TS"]

{"sheet":"Listegs","index":13,"n_rows":4,"n_cols":19,"rows_kept":4,"cut":false,"hidden":true,"merged":[[0,2,0,3],[0,5,1,18]]}
[null,null,"30 m - Volksschiessen",null,2022,"Liste der abgegebenen Gutscheine\nfür fehlende Auszeichnungen"]
["Sekt-nr",null,"ASV Muster"]
[]
["EASV-Nr.","Standblatt","Name","Adresse","Plz","Ort","Kranzabzeichen","GuKA Vj","Bandeinlage","KK Fr.6.00","KK Fr.8.00\n","KK Fr.10.00","KK Fr.12.00","KK Fr.14.00","Kaffeelöffeli","Esslöffel","Gabel","Messer","Besteck-Set"]

{"sheet":"KB_Sektion","index":14,"n_rows":3,"n_cols":26,"rows_kept":3,"cut":false,"hidden":true,"merged":[[1,11,1,25],[0,0,0,10],[1,0,1,7],[1,8,1,10],[0,11,0,25]]}
["Eidgenössischer Armbrustschützen-Verband EASV Association Fédérale de tir à l‘arbalète AFTA",null,null,null,null,null,null,null,null,null,null,{"$f":"Regie!C2&\" \"&Regie!F2","v":"30 m Volksschiessen 2022"}]
[{"$f":"EASV_Abrech30!F3","v":"ASV Muster"},null,null,null,null,null,null,null,"Kontrollblatt",null,null,"Auszeichnungen"]
[" Standbblatt","Name Vorname","Jg"," Kat"," Stellung"," Aktiv-M."," UK"," HD"," ND","Betrag"," Anz.Kranzres"," Wahl"," Kranzabzeichen"," GuKA Vj"," Bandeinlage"," KK Fr.6.00"," KK Fr.8.00\n"," KK Fr.10.00"," KK Fr.12.00"," KK Fr.14.00"," Kaffeelöffeli"," Esslöffel"," Gabel"," Messer"," Besteck-Set"," Bwert"]

{"sheet":"Rangwork","index":15,"n_rows":3,"n_cols":25,"rows_kept":3,"cut":false,"hidden":true,"merged":[]}
["30 m Volksschiessen",null,2019]
[]
["Standblatt","Name","Jg","Kat","Stellung","Aktiv-M.","Höchst-Res","Res02","Res03","Res04","Res05","Res06","Res07","Res08","TSHR","Rang_Sort","Rang-Einzel","Gruppen-Nr","Sie+Er","M/F","Gruppen-Name","Gast","Alter","Frau","ND Sort"]

{"sheet":"GRwk","index":16,"n_rows":1,"n_cols":15,"rows_kept":1,"cut":false,"hidden":true,"merged":[]}
["Gr-Nr","Gruppe","Sch01","R01","Sch02","R02","Sch03","R03","Sch04","R04","Sch05","R05","Total","Grurang","Grusort2"]

{"sheet":"MFrang","index":17,"n_rows":4,"n_cols":17,"rows_kept":4,"cut":false,"hidden":true,"merged":[]}
[{"$f":"EASV_Abrech30!F3","v":"ASV Muster"},null,null,null,null,null,null,null,null,null,null,null,null,null,null,null,{"$f":"Regie!C2&\" \"&Regie!F2","v":"30 m Volksschiessen 2022"}]
[null,null,null,"Rangliste Damen / Herren"]
[]
["Rang","Name","Jg","Kat","Stellung","Aktiv-M.","Höchst-Res","Res02","Res03","Res04","Res05","Res06","Res07","Res08","TSHR",".","M/F"]

{"sheet":"SEwk","index":18,"n_rows":1,"n_cols":9,"rows_kept":1,"cut":false,"hidden":true,"merged":[]}
["Team-Nr","Team","Sch01","R01","Sch02","R02","Total","SErang","Sesort"]

{"sheet":"SErang","index":19,"n_rows":4,"n_cols":7,"rows_kept":4,"cut":false,"hidden":true,"merged":[[1,1,1,2]]}
[{"$f":"EASV_Abrech30!F3","v":"ASV Muster"},null,null,null,null,null,{"$f":"Regie!C2&\" \"&Regie!F2","v":"30 m Volksschiessen 2022"}]
[null,"Rangliste Sie + Er"]
[]
["Rang","Team","Name Vorname",null,null,null,"Total"]

{"sheet":"Gru_Detail","index":20,"n_rows":2,"n_cols":13,"rows_kept":2,"cut":false,"hidden":true,"merged":[]}
[{"$f":"EASV_Abrech30!F3","v":"ASV Muster"},null,{"$f":"Regie!C2&\" \"&Regie!F2","v":"30 m Volksschiessen 2022"},null,null,null,"Rangliste Gruppen"]
["Rang","Gruppe","Sch01","R01","Sch02","R02","Sch03","R03","Sch04","R04","Sch05","R05","Total"]

{"sheet":"Grurangli","index":21,"n_rows":2,"n_cols":9,"rows_kept":2,"cut":false,"hidden":true,"merged":[[1,1,1,2]]}
[{"$f":"EASV_Abrech30!F3","v":"ASV Muster"},null,null,null,null,null,null,null,"Volksschiessen 2019"]
[null,"Rangliste Gruppen",null,"Höchster","Res 2","Res 3","Res 4","Res 5","Total"]

{"sheet":"Gesamtrang","index":22,"n_rows":4,"n_cols":15,"rows_kept":4,"cut":false,"hidden":true,"merged":[]}
[{"$f":"EASV_Abrech30!F3","v":"ASV Muster"},null,null,null,null,null,null,null,null,null,null,null,null,"Volksschiessen 2019"]
[null,null,null,"Rangliste"]
[]
["Rang","Name ","JG","Kat","Stlg","aktiv","Sti-1","Sti-2","Sti-3","Sti-4","Sti-5","Sti-6","Sti-7","Sti-8","TS"]

{"sheet":"Stblmanu","index":23,"n_rows":35,"n_cols":30,"rows_kept":35,"cut":false,"hidden":true,"merged":[[0,1,1,2],[1,3,1,11],[10,3,11,3],[9,8,9,9],[10,1,11,1],[10,2,11,2],[10,8,11,9],[10,7,11,7],[10,6,11,6],[10,5,11,5],[10,4,11,4],[0,3,0,11],[22,2,23,2],[18,1,19,1],[18,2,19,2],[20,1,21,1],[20,2,21,2],[16,3,17,3],[18,3,19,3],[20,3,21,3],[22,3,23,3],[14,1,15,1],[14,2,15,2],[12,1,13,1],[12,2,13,2],[12,5,13,5],[12,6,13,6],[12,3,13,3],[14,3,15,3],[16,2,17,2],[16,1,17,1],[12,4,13,4],[18,5,19,5],[14,4,15,4],[14,7,15,7],[14,8,15,9],[18,6,19,6],[16,7,17,7],[14,5,15,5],[16,4,17,4],[14,6,15,6],[12,7,13,7],[18,17,19,17],[18,18,19,18],[16,17,17,17],[16,18,17,18],[16,8,17,9],[16,16,17,16],[18,16,19,16],[18,8,19,9],[12,8,13,9],[18,23,19,24],[18,20,19,20],[18,21,19,21],[18,22,19,22],[18,19,19,19],[9,23,9,24],[10,23,11,24],[12,22,13,22],[10,18,11,18],[10,22,11,22],[10,19,11,19],[10,20,11,20],[10,21,11,21],[12,23,13,24],[12,18,13,18],[14,18,15,18],[24,23,25,24],[24,21,25,21],[26,21,27,21],[26,22,27,22],[26,16,27,16],[24,20,25,20],[22,20,23,20],[26,20,27,20],[20,20,21,20],[20,21,21,21],[20,22,21,22],[20,23,21,24],[22,16,23,16],[22,18,23,18],[26,18,27,18],[24,22,25,22],[22,22,23,22],[22,23,23,24],[22,21,23,21],[24,8,25,9],[24,5,25,5],[24,17,25,17],[26,17,27,17],[20,8,21,9],[24,18,25,18],[26,19,27,19],[22,17,23,17],[24,16,25,16],[22,5,23,5],[20,5,21,5],[22,8,23,9],[24,19,25,19],[22,19,23,19],[20,16,21,16],[20,17,21,17],[20,18,21,18],[20,19,21,19],[24,1,25,1],[24,2,25,2],[24,3,25,3],[24,4,25,4],[26,5,27,5],[26,6,27,6],[20,6,21,6],[16,6,17,6],[20,7,21,7],[26,1,27,1],[26,2,27,2],[26,3,27,3],[26,4,27,4],[22,6,23,6],[24,6,25,6],[22,7,23,7],[18,7,19,7],[24,7,25,7],[26,7,27,7],[22,4,23,4],[20,4,21,4],[18,4,19,4],[16,5,17,5],[22,1,23,1],[0,16,1,17],[1,18,1,26],[16,21,17,21],[16,20,17,20],[12,20,13,20],[12,21,13,21],[12,19,13,19],[10,16,11,16],[16,22,17,22],[16,23,17,24],[16,19,17,19],[14,19,15,19],[14,20,15,20],[14,22,15,22],[14,23,15,24],[14,21,15,21],[14,17,15,17],[12,17,13,17],[10,17,11,17],[14,16,15,16],[12,16,13,16],[0,18,0,26]]}
[null,"EASV",null,{"$f":"\"Standblatt Volksschiessen \"&Regie!F2","v":"Standblatt Volksschiessen 2022"},null,null,null,null,null,null,null,null,null,"Nr",null,null,"EASV",null,{"$f":"D1","v":"Standblatt Volksschiessen 2022"},null,null,null,null,null,null,null,null,null,"Nr",{"$f":"IF(O1>0,O1,\"\")","v":""}]
[null,null,null,"ASV Rümlang",null,null,null,null,null,null,null,null,null,"Gruppe",null,null,null,null,{"$f":"D2","v":"ASV Rümlang"},null,null,null,null,null,null,null,null,null,"Gruppe"]
[]
[null,null,"für",null,null,null,null,null,null,null,null,null,null,"Fr.",null,null,null,"für",null,null,null,null,null,null,null,null,null,null,"Fr."]
[null,null,null,null,"Aktiv",null,"Jg","Kat","Stlg",null,null,null,null,null,null,null,null,null,null,"Aktiv",null,"Jg","Kat","Stlg"]
[null,null,null,null,null,null,null,null,null,null,"Gruppe",null,null,"Fr.",null,null,null,null,null,null,null,null,null,null,null,"Gruppe",null,null,"Fr."]
[]
[null,"Übungskehr",null,null,null,null,null,null,null,null,null,null,null,null,null,null,"Übungskehr",null,"-","-","-","-","-","-"]
[]
[null,null,"Scheibe","S-1","S-2","S-3","S-4","S-5","Total",null,null,null,null,null,null,null,null,"Scheibe","S-1","S-2","S-3","S-4","S-5","Total"]
[]
[null,null,null,null,null,null,null,null,null,null,null,null,null,"Kranzabzeichen",null,null,null,null,null,null,null,null,null,null,null,null,null,null,"Kranzabzeichen"]
[null,null,null,null,null,null,null,null,null,null,null,null,null,"KA Vorjahr",null,null,null,null,null,null,null,null,null,null,null,null,null,null,"KA Vorjahr"]
[null,null,null,null,null,null,null,null,null,null,null,null,null,"Bandeinlage / Pin",null,null,null,null,null,null,null,null,null,null,null,null,null,null,"Bandeinlage / Pin"]
[null,null,null,null,null,null,null,null,null,null,null,null,null,"Kranzkarte Fr. 6.00",null,null,null,null,null,null,null,null,null,null,null,null,null,null,"Kranzkarte Fr. 6.00"]
[null,null,null,null,null,null,null,null,null,null,null,null,null,"Kranzkarte Fr. 8.00",null,null,null,null,null,null,null,null,null,null,null,null,null,null,"Kranzkarte Fr. 8.00"]
[null,null,null,null,null,null,null,null,null,null,null,null,null,"Kranzkarte Fr. 10.00",null,null,null,null,null,null,null,null,null,null,null,null,null,null,"Kranzkarte Fr. 10.00"]
[null,null,null,null,null,null,null,null,null,null,null,null,null,"Kranzkarte Fr. 12.00",null,null,null,null,null,null,null,null,null,null,null,null,null,null,"Kranzkarte Fr. 12.00"]
[null,null,null,null,null,null,null,null,null,null,null,null,null,"Kranzkarte Fr. 14.00",null,null,null,null,null,null,null,null,null,null,null,null,null,null,"Kranzkarte Fr. 14.00"]
[null,null,null,null,null,null,null,null,null,null,null,null,null,"Kaffeelöffeli (1)",null,null,null,null,null,null,null,null,null,null,null,null,null,null,"Kaffeelöffeli (1)"]
[null,null,null,null,null,null,null,null,null,null,null,null,null,"Esslöffel (2)",null,null,null,null,null,null,null,null,null,null,null,null,null,null,"Esslöffel (2)"]
[null,null,null,null,null,null,null,null,null,null,null,null,null,"Essgabel (2)",null,null,null,null,null,null,null,null,null,null,null,null,null,null,"Essgabel (2)"]
[null,null,null,null,null,null,null,null,null,null,null,null,null,"Messer (3)",null,null,null,null,null,null,null,null,null,null,null,null,null,null,"Messer (3)"]
[null,null,null,null,null,null,null,null,null,null,null,null,null,"Besteck-Set (8)",null,null,null,null,null,null,null,null,null,null,null,null,null,null,"Besteck-Set (8)"]
[null,null,null,null,null,null,null,null,null,null,null,null,null,"Besteck-Werte",null,null,null,null,null,null,null,null,null,null,null,null,null,null,"Besteck-Werte"]
[]
[]
[null,null,null,null,null,null,null,null,null,"Datum:",null,null,null,null,null,null,null,null,null,null,null,null,null,null,"Datum:"]
[]
[null,null,null,"Anz.Kranzres.",null,null,null,null,null,null,null,"Wahl Auszeichnung:",null,null,null,null,null,null,"Anz.Kranzres.",null,null,null,null,null,null,null,"Wahl Auszeichnung:"]
[]
[null,null,null,null,"über 16 J",null,"Jugend",null,null,null,null,null,null,null,null,null,null,null,null,"über 16 J",null,"Jugend"]
[null,null,"Hauptdoppel",null,{"$f":"Regie!D11","v":11},null,{"$f":"Regie!D10","v":7},null,null,null,null,null,null,null,null,null,null,"Hauptdoppel",null,{"$f":"Regie!D11","v":11},null,{"$f":"Regie!D10","v":7}]
[null,null,"Nachdoppel",null,{"$f":"Regie!E11","v":6},null,{"$f":"Regie!E10","v":5},null,"Kranzlimite",null,null,null,null,"Punkte",null,null,null,"Nachdoppel",null,{"$f":"Regie!E11","v":6},null,{"$f":"Regie!E10","v":5},null,"Kranzlimite",null,null,null,null,"Punkte"]
[null,null,"Uebungskehr",null,{"$f":"Regie!C11","v":2},null,{"$f":"Regie!C10","v":2},null,null,null,null,null,null,null,null,null,null,"Uebungskehr",null,{"$f":"Regie!C11","v":2},null,{"$f":"Regie!C10","v":2}]